bitfinex/quotes_BTCUSD_20251010
["timestamp","ask_amount","ask_price","bid_price","bid_amount"]
[1760107921426,0.37586948,121560.0,121550.0,0.63790371]
[1760107921640,8.287e-05,121560.0,121550.0,0.63790371]
[1760107922082,8.287e-05,121560.0,121550.0,0.63890371]
[1760107922301,8.287e-05,121560.0,121550.0,0.78085032]
[1760107922513,8.287e-05,121560.0,121550.0,0.63894371]
[1760107922728,8.287e-05,121560.0,121550.0,0.63994371]
[1760107923169,8.287e-05,121560.0,121550.0,0.40606371]
[1760107923394,8.287e-05,121560.0,121550.0,0.63990371]
[1760107923894,8.287e-05,121560.0,121550.0,0.63990371]
[1760107925417,0.16461067,121560.0,121550.0,0.40606371]
[1760107925649,0.16461067,121560.0,121550.0,0.24093237]
[1760107925871,0.16461067,121560.0,121550.0,0.00251351]
[1760107925872,0.76532593,121560.0,121550.0,0.00251351]
[1760107926093,1.45527783,121560.0,121550.0,0.00251351]
[1760107926748,1.45527783,121560.0,121550.0,0.00151351]
[1760107927161,1.45527783,121560.0,121550.0,0.00051351]
[1760107927379,1.30423989,121560.0,121550.0,0.00051351]
[1760107927593,2.13839989,121560.0,121550.0,0.00051351]
[1760107927747,1.90423989,121560.0,121550.0,0.00051351]
[1760107927975,2.13839989,121560.0,121550.0,0.00051351]
[1760107928381,2.05275989,121560.0,121550.0,0.00051351]
[1760107928588,2.13839989,121560.0,121550.0,0.00051351]
[1760107928860,1.81859989,121560.0,121550.0,0.00051351]
[1760107929081,2.13839989,121560.0,121550.0,0.00051351]
[1760107929286,2.05275989,121560.0,121550.0,0.00051351]
[1760107929575,2.20032975,121560.0,121550.0,0.00051351]
[1760107929830,2.20028975,121560.0,121550.0,0.00051351]
[1760107930450,1.88052975,121560.0,121550.0,0.00051351]
[1760107930647,2.22506645,121560.0,121550.0,0.00051351]
[1760107931393,1.90526645,121560.0,121550.0,0.00051351]
[1760107931657,2.22502645,121560.0,121550.0,0.00051351]
[1760107932282,1.99090645,121560.0,121550.0,0.00051351]
[1760107932528,1.99090645,121560.0,121550.0,1e-08]
[1760107932529,2.22502645,121560.0,121550.0,1e-08]
[1760107932743,2.75862171,121560.0,121550.0,1e-08]
[1760107933179,2.76621698,121560.0,121550.0,1e-08]
[1760107933607,2.44645698,121560.0,121550.0,1e-08]
[1760107933824,2.76617698,121560.0,121550.0,1e-08]
[1760107934009,2.23258172,121560.0,121550.0,1e-08]
[1760107935408,2.05191116,121560.0,121550.0,1e-08]
[1760107935619,2.21643896,121560.0,121550.0,1e-08]
[1760107935825,1.98239896,121560.0,121550.0,1e-08]
[1760107936030,2.21647896,121560.0,121550.0,1e-08]
[1760107938202,2.13075896,121560.0,121550.0,1e-08]
[1760107938413,2.21643896,121560.0,121550.0,1e-08]
[1760107938628,1.41514317,121560.0,121550.0,1e-08]
[1760107938843,1.71514317,121560.0,121550.0,1e-08]
[1760107939914,2.01469843,121560.0,121550.0,1e-08]
[1760107940106,2.56624606,121560.0,121550.0,1e-08]
[1760107940320,6.65050606,121560.0,121550.0,1e-08]
[1760107940535,7.13138606,121560.0,121550.0,1e-08]
[1760107940725,7.16153796,121560.0,121550.0,1e-08]
[1760107941293,4.73887796,121560.0,121550.0,1e-08]
[1760107941730,4.62599796,121560.0,121550.0,1e-08]
[1760107941905,4.54549796,121560.0,121550.0,1e-08]
[1760107942123,4.22577796,121560.0,121550.0,1e-08]
[1760107942450,3.11869796,121560.0,121550.0,1e-08]
[1760107944212,3.11865796,121560.0,121550.0,1e-08]
[1760107944418,3.14059752,121560.0,121550.0,1e-08]
[1760107944630,2.90659752,121560.0,121550.0,1e-08]
[1760107944838,3.14059752,121560.0,121550.0,1e-08]
[1760107946296,2.55541752,121560.0,121550.0,1e-08]
[1760107946505,2.92580226,121560.0,121550.0,1e-08]
[1760107946714,2.34151398,121560.0,121550.0,1e-08]
[1760107947134,3.43440924,121560.0,121550.0,1e-08]
[1760107947560,2.34151398,121560.0,121550.0,1e-08]
[1760107947728,2.66651398,121560.0,121550.0,1e-08]
[1760107947928,3.43406924,121560.0,121550.0,1e-08]
[1760107948140,3.20010924,121560.0,121550.0,1e-08]
[1760107948345,2.57506924,121560.0,121550.0,1e-08]
[1760107948526,2.19267398,121560.0,121550.0,1e-08]
[1760107948725,2.2442841,121560.0,121550.0,1e-08]
[1760107948952,2.77787936,121560.0,121550.0,1e-08]
[1760107949155,2.54391936,121560.0,121550.0,1e-08]
[1760107949375,2.77787936,121560.0,121550.0,1e-08]
[1760107950791,2.54391936,121560.0,121550.0,1e-08]
[1760107951005,2.77783936,121560.0,121550.0,1e-08]
[1760107951430,2.74841949,121560.0,121550.0,1e-08]
[1760107951573,2.74041949,121560.0,121550.0,1e-08]
[1760107951991,2.58649629,121560.0,121550.0,1e-08]
[1760107952313,2.76307723,121560.0,121550.0,1e-08]
[1760107953213,0.16458196,121520.0,121510.0,0.06619503]
[1760107953414,0.93974421,121520.0,121510.0,0.06619503]
[1760107953615,1.17578702,121520.0,121510.0,0.0682502]
[1760107953824,1.17578702,121520.0,121510.0,0.07684222]
[1760107953998,2.03764975,121520.0,121510.0,0.01064719]
[1760107954205,2.6595651,121520.0,121510.0,0.00205517]
[1760107954413,2.43414113,121520.0,121510.0,0.00220648]
[1760107954616,2.66806113,121520.0,121510.0,0.00220648]
[1760107955228,2.67536624,121520.0,121510.0,0.00220648]
[1760107955532,1.84752823,121520.0,121510.0,0.00220648]
[1760107955752,2.16712823,121520.0,121510.0,0.00220648]
[1760107956984,1.84752823,121520.0,121510.0,0.00220648]
[1760107957321,2.16712823,121520.0,121510.0,0.00220648]
[1760107957745,1.84752823,121520.0,121510.0,0.00220648]
[1760107957949,2.08140823,121520.0,121510.0,0.00220648]
[1760107958202,2.16708823,121520.0,121510.0,0.00220648]
[1760107959034,2.1326621,121520.0,121510.0,0.00220648]
[1760107961234,1.8987821,121520.0,121510.0,0.00220648]
[1760107961463,2.1326621,121520.0,121510.0,0.00220648]
[1760107962216,2.409614,121520.0,121510.0,0.00220648]
[1760107963803,1.78961635,121520.0,121510.0,0.00220648]
[1760107964044,2.409574,121520.0,121510.0,0.00220648]
[1760107964296,2.0599021,121520.0,121510.0,0.00220648]
[1760107964513,2.03796645,121520.0,121510.0,0.00220648]
[1760107964665,2.35752645,121520.0,121510.0,0.00220648]
[1760107964894,2.12364645,121520.0,121510.0,0.00220648]
[1760107965099,0.41987799,121520.0,121510.0,0.07686648]
[1760107965322,0.65383799,121520.0,121510.0,0.2672914]
[1760107966124,0.4808,121520.0,121510.0,0.2672914]
[1760107966559,0.64538196,121520.0,121510.0,0.2672914]
[1760107966939,0.65370652,121520.0,121510.0,0.2672914]
[1760107967635,0.65370652,121520.0,121510.0,0.2682914]
[1760107968254,0.41970652,121520.0,121510.0,0.2682914]
[1760107968490,0.65366652,121520.0,121510.0,0.2682914]
[1760107970297,0.65366652,121520.0,121510.0,0.1036959]
[1760107971099,0.65366652,121520.0,121510.0,0.2682914]
[1760107971302,0.65358652,121520.0,121510.0,0.2682914]
[1760107971701,0.2468,121520.0,121510.0,0.35141346]
[1760107974501,0.41138196,121520.0,121510.0,0.35141346]
[1760107975002,0.2468,121520.0,121510.0,0.35141346]
[1760107975435,0.41138196,121520.0,121510.0,0.35141346]
[1760107975665,0.78728673,121520.0,121510.0,0.18681796]
[1760107975882,0.78728673,121520.0,121510.0,0.0681159]
[1760107975883,1.1631915,121520.0,121510.0,0.0681159]
[1760107976969,0.78728673,121520.0,121510.0,0.0681159]
[1760107977175,0.78728673,121520.0,121510.0,0.0671159]
[1760107977823,1.02124673,121520.0,121510.0,0.1023459]
[1760107978454,1.3971515,121520.0,121510.0,0.00220648]
[1760107978936,1.77305627,121520.0,121510.0,0.00220648]
[1760107979157,1.3971515,121520.0,121510.0,0.00220648]
[1760107979577,1.14678975,121520.0,121510.0,0.00220648]
[1760107980923,0.41138196,121520.0,121510.0,0.07793648]
[1760107981169,0.64538196,121520.0,121510.0,0.04270648]
[1760107981399,0.91282975,121520.0,121510.0,0.02972313]
[1760107981636,1.14682975,121520.0,121510.0,0.04270648]
[1760107981869,0.91282975,121520.0,121510.0,0.04270648]
[1760107982085,1.63293578,121520.0,121510.0,0.04270648]
[1760107982321,1.63293578,121520.0,121510.0,0.02013648]
[1760107982532,1.63293578,121520.0,121510.0,0.04270648]
[1760107983683,1.63293578,121520.0,121510.0,0.08662313]
[1760107984728,1.54721578,121520.0,121510.0,0.08662313]
[1760107985182,1.63289578,121520.0,121510.0,0.08662313]
[1760107985399,1.54721578,121520.0,121510.0,0.08662313]
[1760107986455,1.31325578,121520.0,121510.0,0.08662313]
[1760107986862,1.54725578,121520.0,121510.0,0.08662313]
[1760107987065,1.31325578,121520.0,121510.0,0.08662313]
[1760107987273,1.54725578,121520.0,121510.0,0.02972313]
[1760107987503,1.54729578,121520.0,121510.0,0.01179313]
[1760107987708,1.54729578,121520.0,121510.0,0.02640648]
[1760107987881,1.54729578,121520.0,121510.0,0.00220648]
[1760107988305,1.54725578,121520.0,121510.0,0.00220648]
[1760107989164,1.54725578,121520.0,121510.0,0.02640648]
[1760107989370,1.54725578,121520.0,121510.0,0.07772648]
[1760107989589,1.54725578,121520.0,121510.0,0.05286813]
[1760107991516,1.31325578,121520.0,121510.0,0.08719813]
[1760107991725,1.54721578,121520.0,121510.0,0.08719813]
[1760107992288,0.2468,121520.0,121510.0,0.08719813]
[1760107992497,0.2468,121520.0,121510.0,0.25179363]
[1760107992498,0.64538196,121520.0,121510.0,0.25179363]
[1760107992712,0.41138196,121520.0,121510.0,0.25179363]
[1760107992917,0.64538196,121520.0,121510.0,0.25179363]
[1760107993119,0.41138196,121520.0,121510.0,0.25179363]
[1760107993321,0.64538196,121520.0,121510.0,0.25179363]
[1760107993523,0.41138196,121520.0,121510.0,0.25179363]
[1760107993724,0.64538196,121520.0,121510.0,0.25179363]
[1760107993969,0.41138196,121520.0,121510.0,0.25179363]
[1760107994178,0.64538196,121520.0,121510.0,0.25179363]
[1760107994583,0.371503,121520.0,121510.0,0.25179363]
[1760107994804,0.137463,121520.0,121510.0,0.33591569]
[1760107997621,0.30204496,121520.0,121510.0,0.33591569]
[1760107997834,0.137463,121520.0,121510.0,0.33591569]
[1760108000193,0.137463,121520.0,121510.0,0.56987569]
[1760108001836,0.137463,121520.0,121510.0,0.33591569]
[1760108002051,0.137463,121520.0,121510.0,1.07132348]
[1760108002470,0.137463,121520.0,121510.0,0.33591569]
[1760108002680,0.137463,121520.0,121510.0,1.07128348]
[1760108003918,0.137463,121520.0,121510.0,1.07028348]
[1760108004356,0.137463,121520.0,121510.0,1.07128348]
[1760108004564,0.137463,121520.0,121510.0,1.07228348]
[1760108004775,0.137463,121520.0,121510.0,1.08077748]
[1760108004981,0.137463,121520.0,121510.0,1.08073748]
[1760108006694,0.137463,121520.0,121510.0,1.08069748]
[1760108007523,0.137463,121520.0,121510.0,0.84685748]
[1760108007733,0.137463,121520.0,121510.0,1.08069748]
[1760108008614,0.137463,121520.0,121510.0,0.84685748]
[1760108008831,0.137463,121520.0,121510.0,0.33691569]
[1760108008832,0.30204496,121520.0,121510.0,0.33691569]
[1760108009286,0.30204496,121520.0,121510.0,0.07972648]
[1760108009287,0.80349275,121520.0,121510.0,0.07972648]
[1760108009729,0.80349275,121520.0,121510.0,0.07872648]
[1760108009909,0.30204496,121520.0,121510.0,0.07872648]
[1760108010341,0.80349275,121520.0,121510.0,0.07972648]
[1760108010544,0.80349275,121520.0,121510.0,0.07772648]
[1760108011188,0.80349275,121520.0,121510.0,0.12705884]
[1760108014322,0.30204496,121520.0,121510.0,0.12705884]
[1760108014533,0.80349275,121520.0,121510.0,0.12705884]
[1760108014739,0.30204496,121520.0,121510.0,0.12705884]
[1760108016755,0.80349275,121520.0,121510.0,0.12705884]
[1760108018436,1.03737275,121520.0,121510.0,0.06852884]
[1760108018642,1.03737275,121520.0,121510.0,0.00220648]
[1760108019068,0.80349275,121520.0,121510.0,0.00220648]
[1760108019319,1.03733275,121520.0,121510.0,0.00220648]
[1760108019861,0.80349275,121520.0,121510.0,0.00220648]
[1760108020044,1.03737275,121520.0,121510.0,0.00220648]
[1760108020669,0.80349275,121520.0,121510.0,0.00220648]
[1760108020869,1.03737275,121520.0,121510.0,0.00220648]
[1760108021279,0.80349275,121520.0,121510.0,0.00220648]
[1760108021533,1.03733275,121520.0,121510.0,0.00220648]
[1760108022461,1.03733275,121520.0,121510.0,0.04204648]
[1760108023287,1.03733275,121520.0,121510.0,0.05152213]
[1760108023903,0.53584496,121520.0,121510.0,0.05152213]
[1760108024105,1.03729275,121520.0,121510.0,0.05152213]
[1760108024321,0.53584496,121520.0,121510.0,0.05152213]
[1760108024527,0.53584496,121520.0,121510.0,0.08724213]
[1760108024965,0.30204496,121520.0,121510.0,0.08724213]
[1760108025183,0.53584496,121520.0,121510.0,0.25183763]
[1760108026286,0.30204496,121520.0,121510.0,0.25183763]
[1760108026931,0.53584496,121520.0,121510.0,0.08724213]
[1760108027559,0.53584496,121520.0,121510.0,0.25183763]
[1760108027773,0.30204496,121520.0,121510.0,0.25183763]
[1760108027991,0.53584496,121520.0,121510.0,0.25183763]
[1760108028841,0.30204496,121520.0,121510.0,0.08724213]
[1760108029059,0.53580496,121520.0,121510.0,0.08724213]
[1760108029278,0.53580496,121520.0,121510.0,0.10370168]
[1760108029703,0.53584496,121520.0,121510.0,0.10370168]
[1760108030143,0.53584496,121520.0,121510.0,0.08724213]
[1760108030827,0.80349275,121520.0,121510.0,0.08724213]
[1760108031051,1.03729275,121520.0,121510.0,0.08724213]
[1760108031677,1.03725275,121520.0,121510.0,0.08724213]
[1760108032540,0.53580496,121520.0,121510.0,0.08724213]
[1760108032749,0.53580496,121520.0,121510.0,0.25183763]
[1760108032964,0.53580496,121520.0,121510.0,0.08724213]
[1760108037106,0.30204496,121520.0,121510.0,0.08724213]
[1760108037314,0.53572496,121520.0,121510.0,0.08724213]
[1760108038157,0.30204496,121520.0,121510.0,0.08724213]
[1760108038359,0.53572496,121520.0,121510.0,0.08724213]
[1760108038771,0.30204496,121520.0,121510.0,0.08724213]
[1760108038983,0.53572496,121520.0,121510.0,0.08724213]
[1760108039558,0.91166087,121520.0,121510.0,0.08724213]
[1760108039800,0.53572496,121520.0,121510.0,0.08724213]
[1760108039998,0.91166087,121520.0,121510.0,0.08724213]
[1760108040601,0.30204496,121520.0,121510.0,0.08724213]
[1760108040744,0.91162087,121520.0,121510.0,0.10354187]
[1760108040950,0.91162087,121520.0,121510.0,0.08724213]
[1760108041162,0.53568496,121520.0,121510.0,0.08724213]
[1760108041549,0.91158087,121520.0,121510.0,0.08724213]
[1760108042001,0.67798087,121520.0,121510.0,0.08724213]
[1760108042171,1.28755678,121520.0,121510.0,0.00220648]
[1760108042779,1.42985269,121520.0,121510.0,0.00220648]
[1760108043072,2.44829645,121520.0,121510.0,0.00220648]
[1760108044000,2.47844835,121520.0,121510.0,0.00220648]
[1760108045533,2.24476835,121520.0,121510.0,0.00220648]
[1760108045983,2.47844835,121520.0,121510.0,0.00220648]
[1760108046192,2.24476835,121520.0,121510.0,0.00220648]
[1760108046400,2.47844835,121520.0,121510.0,0.00220648]
[1760108047055,2.24476835,121520.0,121510.0,0.00220648]
[1760108047242,2.47844835,121520.0,121510.0,0.00220648]
[1760108049379,2.47840835,121520.0,121510.0,0.00220648]
[1760108049604,2.24476835,121520.0,121510.0,0.00220648]
[1760108049804,2.47840835,121520.0,121510.0,0.00220648]
[1760108050041,2.24476835,121520.0,121510.0,0.00220648]
[1760108050458,2.56408835,121520.0,121510.0,0.00220648]
[1760108051117,2.24476835,121520.0,121510.0,0.00220648]
[1760108051338,2.56408835,121520.0,121510.0,0.00220648]
[1760108052468,2.47840835,121520.0,121510.0,0.00220648]
[1760108052676,2.56408835,121520.0,121510.0,0.00220648]
[1760108052885,2.33044835,121520.0,121510.0,0.00220648]
[1760108053325,2.56408835,121520.0,121510.0,0.00220648]
[1760108054776,2.33044835,121520.0,121510.0,0.00220648]
[1760108055026,2.56408835,121520.0,121510.0,0.00220648]
[1760108055451,2.24476835,121520.0,121510.0,0.00220648]
[1760108055695,2.56408835,121520.0,121510.0,0.00220648]
[1760108060065,2.33044835,121520.0,121510.0,0.00220648]
[1760108060183,2.56408835,121520.0,121510.0,0.00220648]
[1760108060907,2.33044835,121520.0,121510.0,0.00220648]
[1760108061189,2.56408835,121520.0,121510.0,0.00220648]
[1760108062522,2.24476835,121520.0,121510.0,0.00220648]
[1760108062753,2.56408835,121520.0,121510.0,0.00220648]
[1760108063201,2.47840835,121520.0,121510.0,0.00220648]
[1760108063406,2.56408835,121520.0,121510.0,0.00220648]
[1760108064444,2.24476835,121520.0,121510.0,0.00220648]
[1760108064651,2.56408835,121520.0,121510.0,0.00220648]
[1760108064952,2.24476835,121520.0,121510.0,0.00220648]
[1760108065191,2.10247244,121520.0,121510.0,0.00220648]
[1760108065397,2.18815244,121520.0,121510.0,0.00220648]
[1760108066023,1.95451244,121520.0,121510.0,0.00220648]
[1760108066244,2.56408835,121520.0,121510.0,0.00220648]
[1760108068862,2.33044835,121520.0,121510.0,0.00220648]
[1760108069307,2.56408835,121520.0,121510.0,0.00220648]
[1760108069752,2.33044835,121520.0,121510.0,0.00220648]
[1760108069968,3.00728835,121520.0,121510.0,0.00220648]
[1760108070277,5.5286998,121520.0,121510.0,1e-08]
[1760108070490,5.77994987,121520.0,121510.0,1e-08]
[1760108070724,5.3614989,121520.0,121510.0,1e-08]
[1760108071405,5.38347507,121520.0,121510.0,1e-08]
[1760108072765,5.38547507,121520.0,121510.0,1e-08]
[1760108072986,5.17683506,121520.0,121510.0,1e-08]
[1760108073197,5.40947506,121520.0,121510.0,1e-08]
[1760108073429,5.20607431,121520.0,121510.0,1e-08]
[1760108073635,5.51773813,121520.0,121510.0,1e-08]
[1760108074332,5.43205813,121520.0,121510.0,1e-08]
[1760108074540,5.27841493,121520.0,121510.0,1e-08]
[1760108074736,5.86057813,121520.0,121510.0,1e-08]
[1760108074942,5.19741813,121520.0,121510.0,1e-08]
[1760108075147,5.85969813,121520.0,121510.0,1e-08]
[1760108075394,5.86069813,121520.0,121510.0,1e-08]
[1760108075818,5.94069493,121520.0,121510.0,1e-08]
[1760108076035,5.93969493,121520.0,121510.0,1e-08]
[1760108076252,5.98352563,121520.0,121510.0,1e-08]
[1760108076467,5.98452563,121520.0,121510.0,1e-08]
[1760108076946,5.32224563,121520.0,121510.0,1e-08]
[1760108077174,5.98452563,121520.0,121510.0,1e-08]
[1760108077390,5.32224563,121520.0,121510.0,1e-08]
[1760108077617,5.98452563,121520.0,121510.0,1e-08]
[1760108078293,5.95528638,121520.0,121510.0,1e-08]
[1760108079516,5.95526693,121520.0,121510.0,1e-08]
[1760108079718,5.72158693,121520.0,121510.0,1e-08]
[1760108079953,5.9352647,121520.0,121510.0,1e-08]
[1760108080156,1.51072396,121480.0,121470.0,0.06619503]
[1760108080366,2.05833329,121480.0,121470.0,0.0662779]
[1760108080882,2.08308575,121480.0,121470.0,0.0662779]
[1760108081315,2.08308575,121480.0,121470.0,8.287e-05]
[1760108081316,1.38774984,121480.0,121470.0,8.287e-05]
[1760108081532,0.53577915,121480.0,121470.0,0.07297287]
[1760108081754,0.91171506,121480.0,121470.0,0.07297287]
[1760108082189,1.28765097,121480.0,121470.0,0.04053287]
[1760108082612,1.28765097,121480.0,121470.0,0.04952516]
[1760108083277,1.05397097,121480.0,121470.0,0.08196516]
[1760108083482,1.28765097,121480.0,121470.0,0.08196516]
[1760108083687,1.05397097,121480.0,121470.0,0.08196516]
[1760108083905,1.28765097,121480.0,121470.0,0.08196516]
[1760108084114,0.67803506,121480.0,121470.0,0.08196516]
[1760108084536,0.53577915,121480.0,121470.0,0.24661486]
[1760108084746,0.91171506,121480.0,121470.0,0.24661486]
[1760108085161,0.371143,121480.0,121470.0,0.32973692]
[1760108085363,0.53577915,121480.0,121470.0,0.36093692]
[1760108085786,0.53577915,121480.0,121470.0,0.36293692]
[1760108085995,0.53577915,121480.0,121470.0,0.2003434]
[1760108086206,0.91171506,121480.0,121470.0,0.07578905]
[1760108086448,0.91171506,121480.0,121470.0,0.10822905]
[1760108087540,1.28765097,121480.0,121470.0,0.10822905]
[1760108087760,0.91171506,121480.0,121470.0,0.10822905]
[1760108088385,0.53577915,121480.0,121470.0,0.10822905]
[1760108088594,0.91171506,121480.0,121470.0,0.10822905]
[1760108089005,0.67803506,121480.0,121470.0,0.10822905]
[1760108089222,0.91171506,121480.0,121470.0,0.10822905]
[1760108090959,0.91171506,121480.0,121470.0,0.11090905]
[1760108091581,0.53577915,121480.0,121470.0,0.11090905]
[1760108091973,0.91171506,121480.0,121470.0,0.11090905]
[1760108092194,0.53577915,121480.0,121470.0,0.11090905]
[1760108092396,0.67803506,121480.0,121470.0,0.11090905]
[1760108092599,0.53577915,121480.0,121470.0,0.11090905]
[1760108092926,0.30209915,121480.0,121470.0,0.1401612]
[1760108093137,0.91171506,121480.0,121470.0,0.1401612]
[1760108093611,0.53577915,121480.0,121470.0,0.32127587]
[1760108093830,0.53577915,121480.0,121470.0,0.3048109]
[1760108095490,0.53577915,121480.0,121470.0,0.1401612]
[1760108095699,0.53577915,121480.0,121470.0,0.15662617]
[1760108095915,0.91171506,121480.0,121470.0,0.11090905]
[1760108096132,0.67803506,121480.0,121470.0,0.11090905]
[1760108096346,0.91171506,121480.0,121470.0,0.11090905]
[1760108096778,0.53577915,121480.0,121470.0,0.11090905]
[1760108096993,0.67803506,121480.0,121470.0,0.32127592]
[1760108097204,0.67803506,121480.0,121470.0,0.14016125]
[1760108097205,0.91171506,121480.0,121470.0,0.14016125]
[1760108097627,0.91171506,121480.0,121470.0,0.15662622]
[1760108097865,0.53577915,121480.0,121470.0,0.15662622]
[1760108098794,0.91171506,121480.0,121470.0,0.14016125]
[1760108099694,0.53577915,121480.0,121470.0,0.14016125]
[1760108101006,0.30209915,121480.0,121470.0,0.32127592]
[1760108101226,0.30209915,121480.0,121470.0,0.14016125]
[1760108101681,0.53577915,121480.0,121470.0,0.32127592]
[1760108101898,0.53577915,121480.0,121470.0,0.30481095]
[1760108102574,0.53577915,121480.0,121470.0,0.14016125]
[1760108102787,0.53577915,121480.0,121470.0,0.32127592]
[1760108102997,0.53577915,121480.0,121470.0,0.30481095]
[1760108103897,0.137463,121480.0,121470.0,0.30481095]
[1760108104114,0.53577915,121480.0,121470.0,0.30481095]
[1760108104361,0.53577915,121480.0,121470.0,0.14016125]
[1760108105067,0.53577915,121480.0,121470.0,0.30481095]
[1760108105275,0.30209915,121480.0,121470.0,0.30481095]
[1760108105490,0.39831615,121480.0,121470.0,0.30481095]
[1760108107652,0.39831615,121480.0,121470.0,0.14016125]
[1760108107869,0.39831615,121480.0,121470.0,0.30481095]
[1760108109026,0.23368,121480.0,121470.0,0.30481095]
[1760108109245,0.23368,121480.0,121470.0,0.88953547]
[1760108109246,0.16463615,121480.0,121470.0,0.88953547]
[1760108109430,0.16463615,121480.0,121470.0,0.38793301]
[1760108109680,0.16463476,121490.0,121470.0,0.88953547]
[1760108109899,0.39831476,121490.0,121480.0,0.06590361]
[1760108110113,0.39831476,121490.0,121480.0,0.33370656]
[1760108110323,0.39831476,121490.0,121480.0,0.1526068]
[1760108110995,0.39831476,121490.0,121480.0,0.07261]
[1760108111656,0.16463476,121490.0,121480.0,0.25370976]
[1760108111870,0.39831476,121490.0,121480.0,0.07261]
[1760108112083,0.39831476,121490.0,121480.0,0.23724615]
[1760108113004,0.39831476,121490.0,121480.0,0.07261]
[1760108113222,0.39831476,121490.0,121480.0,0.13576468]
[1760108113442,0.3983026,121490.0,121480.0,0.30040083]
[1760108114535,0.3983026,121490.0,121480.0,0.13576468]
[1760108114781,0.1646226,121490.0,121480.0,0.13576468]
[1760108115008,0.89986506,121490.0,121480.0,0.04056]
[1760108115272,0.89986506,121490.0,121480.0,0.04210201]
[1760108115495,0.89986506,121490.0,121480.0,0.00154201]
[1760108115697,0.66622506,121490.0,121480.0,0.02471201]
[1760108115933,0.89986506,121490.0,121480.0,0.08437172]
[1760108116186,0.89986506,121490.0,121480.0,0.05232172]
[1760108116448,0.66622506,121490.0,121480.0,0.05232172]
[1760108116711,0.18937026,121490.0,121480.0,0.08437172]
[1760108116956,0.18937026,121490.0,121480.0,0.24900787]
[1760108116957,0.3982626,121490.0,121480.0,0.24900787]
[1760108117380,0.1646226,121490.0,121480.0,0.24900787]
[1760108117587,0.3982626,121490.0,121480.0,0.08437172]
[1760108118226,0.3982626,121490.0,121480.0,0.24900787]
[1760108118654,0.3982626,121490.0,121480.0,0.08437172]
[1760108119497,0.3982626,121490.0,121480.0,0.10083533]
[1760108119899,0.3982626,121490.0,121480.0,0.08437172]
[1760108120801,0.1646226,121490.0,121480.0,0.26547148]
[1760108121021,0.19760856,121500.0,121480.0,0.24900787]
[1760108121229,0.17286298,121500.0,121490.0,0.2140626]
[1760108121483,0.1728395,121500.0,121490.0,0.28849265]
[1760108121692,0.28327332,121520.0,121500.0,0.16460905]
[1760108121899,0.25853105,121520.0,121510.0,0.07261]
[1760108122107,0.40645105,121520.0,121510.0,0.07261]
[1760108122323,0.17281105,121520.0,121510.0,0.07261]
[1760108122535,0.16458196,121520.0,121510.0,0.27912596]
[1760108122753,0.23364,121520.0,121510.0,0.26266641]
[1760108122960,0.17417078,121530.0,121510.0,0.26266641]
[1760108123173,5.034e-05,121520.0,121510.0,0.23061641]
[1760108123807,5.034e-05,121520.0,121510.0,0.26266641]
[1760108124033,0.1646323,121520.0,121510.0,0.09907091]
[1760108125098,0.1646323,121520.0,121510.0,0.10007091]
[1760108127486,0.1646323,121520.0,121510.0,0.26466641]
[1760108127695,5.034e-05,121520.0,121510.0,0.26466641]
[1760108127947,0.1646323,121520.0,121510.0,0.26466641]
[1760108128824,5.034e-05,121520.0,121510.0,0.26466641]
[1760108129444,0.1646323,121520.0,121510.0,0.26466641]
[1760108130029,0.1646323,121520.0,121510.0,0.10007091]
[1760108130262,0.1646323,121520.0,121510.0,0.26466641]
[1760108130590,5.034e-05,121520.0,121510.0,0.26466641]
[1760108131233,0.1646323,121520.0,121510.0,0.26466641]
[1760108133451,0.1646323,121520.0,121510.0,0.10007091]
[1760108133895,0.1646323,121520.0,121510.0,0.26466641]
[1760108134574,5.034e-05,121520.0,121510.0,0.26466641]
[1760108134787,0.1646323,121520.0,121510.0,0.26466641]
[1760108135681,5.034e-05,121520.0,121510.0,0.26466641]
[1760108135917,5.034e-05,121520.0,121510.0,0.49826641]
[1760108137407,0.1646323,121520.0,121510.0,0.49826641]
[1760108137851,5.034e-05,121520.0,121510.0,0.49826641]
[1760108139157,5.034e-05,121520.0,121510.0,0.99986887]
[1760108139613,5.034e-05,121520.0,121510.0,0.49826641]
[1760108139832,0.1646323,121520.0,121510.0,0.49826641]
[1760108140114,0.1646323,121520.0,121510.0,0.10007091]
[1760108140328,0.1646323,121520.0,121510.0,0.33363091]
[1760108140586,0.1646323,121520.0,121510.0,0.10007091]
[1760108140782,0.1646323,121520.0,121510.0,0.49822641]
[1760108141190,0.1646323,121520.0,121510.0,0.26466641]
[1760108141400,0.1646323,121520.0,121510.0,0.33363091]
[1760108142232,0.66623476,121520.0,121510.0,0.04256]
[1760108142453,1.50783722,121520.0,121510.0,0.002]
[1760108142671,2.54797604,121520.0,121510.0,0.002]
[1760108142913,2.31441604,121520.0,121510.0,1e-08]
[1760108143167,2.33198036,121520.0,121510.0,1e-08]
[1760108143408,7.24635217,121520.0,121510.0,1e-08]
[1760108143623,7.24635217,121520.0,121500.0,0.00051392]
[1760108143624,0.1645955,121510.0,121500.0,0.00051392]
[1760108143856,0.1645955,121510.0,121470.0,0.11444503]
[1760108143857,0.16463615,121480.0,121470.0,0.09739503]
[1760108144064,0.89979861,121480.0,121470.0,0.09739503]
[1760108144278,0.90824442,121480.0,121470.0,0.09739503]
[1760108144485,0.90824442,121480.0,121470.0,0.0327422]
[1760108144932,1.24824442,121480.0,121470.0,0.0327422]
[1760108145154,2.46317115,121480.0,121470.0,0.0327422]
[1760108145817,2.22961115,121480.0,121470.0,0.0327422]
[1760108146045,2.47082754,121480.0,121470.0,0.0327422]
[1760108146263,2.23722754,121480.0,121470.0,0.0327422]
[1760108146492,2.48836496,121480.0,121470.0,0.0327422]
[1760108146723,2.23722754,121480.0,121470.0,0.0337422]
[1760108146984,2.53172409,121480.0,121470.0,0.0327422]
[1760108147408,2.61740409,121480.0,121470.0,0.0327422]
[1760108147851,2.29812409,121480.0,121470.0,0.0327422]
[1760108148090,2.61740409,121480.0,121470.0,0.0327422]
[1760108148979,2.53172409,121480.0,121470.0,0.0327422]
[1760108149196,2.6173918,121480.0,121470.0,0.0327422]
[1760108149409,2.2905077,121480.0,121470.0,0.0327422]
[1760108149628,2.3761877,121480.0,121470.0,0.0327422]
[1760108150087,2.6097877,121480.0,121470.0,0.0327422]
[1760108150543,2.5241077,121480.0,121470.0,0.0327422]
[1760108150799,2.3098277,121480.0,121470.0,0.0327422]
[1760108151010,2.24893115,121480.0,121470.0,0.0327422]
[1760108151431,2.31089563,121480.0,121470.0,0.0327422]
[1760108152327,1.99157563,121480.0,121470.0,0.0327422]
[1760108152537,2.01093563,121480.0,121470.0,0.0327422]
[1760108153660,2.31093563,121480.0,121470.0,0.0327422]
[1760108153887,2.33568809,121480.0,121470.0,0.0327422]
[1760108154327,2.24996809,121480.0,121470.0,0.0327422]
[1760108154537,2.33568809,121480.0,121470.0,0.0327422]
[1760108154989,2.41568489,121480.0,121470.0,0.0327422]
[1760108155205,2.33568809,121480.0,121470.0,0.0327422]